fUST/lending_fUST_20260518
["ID","MTS","AMOUNT","RATE_DAILY","PERIOD"]
[422524819,1779033690000,200.0,0.00010999,120]
[422524822,1779033750000,200.0,0.00012843,120]
[422524826,1779033810000,200.0,0.00014027,120]
[422524831,1779033931000,200.0,0.00015555,120]
[422524834,1779033990000,200.0,0.00015889,120]
[422524849,1779034186000,1875.29,0.00017808,120]
[422524850,1779034230000,200.0,0.00017513,120]
[422524891,1779034232000,-274.71521329,6.861e-05,2]
[422524889,1779034232000,-4530.25220371,6.792e-05,2]
[422524887,1779034232000,-469.74779629,6.792e-05,2]
[422524896,1779034232000,-300.0,6.929e-05,2]
[422524894,1779034232000,-300.0,6.929e-05,2]
[422524892,1779034232000,-300.0,6.929e-05,2]
[422524902,1779034232000,-79.08947047,7.188e-05,2]
[422524903,1779034232000,-306.91064592,7.188e-05,2]
[422524898,1779034232000,-300.0,6.929e-05,2]
[422524901,1779034232000,-982.04643673,7e-05,2]
[422524905,1779034232000,-5000.0,7.6e-05,2]
[422524904,1779034232000,-1511.86643524,7.6e-05,2]
[422524900,1779034232000,-5000.0,6.93e-05,2]
[422524927,1779034238000,-217.60199459,8.968e-05,2]
[422524932,1779034238000,-641.68813308,8.968e-05,2]
[422524930,1779034238000,-641.68813308,8.968e-05,2]
[422524935,1779034238000,-641.68813308,8.968e-05,2]
[422524928,1779034238000,-641.68813308,8.968e-05,2]
[422524934,1779034238000,-641.68813308,8.968e-05,2]
[422524933,1779034238000,-641.68813308,8.968e-05,2]
[422524925,1779034238000,-500.0,8.865e-05,2]
[422524926,1779034238000,-35334.29262413,8.868e-05,2]
[422524917,1779034238000,-21204.19175112,7.6e-05,2]
[422524924,1779034238000,-240.041,8.822e-05,2]
[422524921,1779034238000,-5379.08765109,8.821e-05,2]
[422524920,1779034238000,-161.67668242,8.759e-05,2]
[422524918,1779034238000,-160.0,8.759e-05,2]
[422524922,1779034238000,-555.9829184,8.822e-05,2]
[422524919,1779034238000,-160.0,8.759e-05,2]
[422524929,1779034238000,-641.68813308,8.968e-05,2]
[422524916,1779034238000,-12033.40121222,7.6e-05,2]
[422524915,1779034238000,-943.065,7.6e-05,2]
[422524923,1779034238000,-2143.8848916,8.822e-05,2]
[422524931,1779034238000,-641.68813308,8.968e-05,2]
[422524949,1779034238000,-665.02224701,8.968e-05,2]
[422524937,1779034238000,-641.68813308,8.968e-05,2]
[422524958,1779034238000,-2075.00998034,8.969e-05,2]
[422524956,1779034238000,-78992.75253231,8.969e-05,2]
[422524954,1779034238000,-665.02224701,8.968e-05,2]
[422524955,1779034238000,-665.02224701,8.968e-05,2]
[422524952,1779034238000,-665.02224701,8.968e-05,2]
[422524936,1779034238000,-641.68813308,8.968e-05,2]
[422524953,1779034238000,-665.02224701,8.968e-05,2]
[422524951,1779034238000,-665.02224701,8.968e-05,2]
[422524950,1779034238000,-665.02224701,8.968e-05,2]
[422524945,1779034238000,-641.68813308,8.968e-05,2]
[422524957,1779034238000,-73646.04559471,8.969e-05,2]
[422524946,1779034238000,-665.02224701,8.968e-05,2]
[422524943,1779034238000,-641.68813308,8.968e-05,2]
[422524944,1779034238000,-641.68813308,8.968e-05,2]
[422524942,1779034238000,-641.68813308,8.968e-05,2]
[422524941,1779034238000,-641.68813308,8.968e-05,2]
[422524940,1779034238000,-641.68813308,8.968e-05,2]
[422524939,1779034238000,-641.68813308,8.968e-05,2]
[422524948,1779034238000,-665.02224701,8.968e-05,2]
[422524938,1779034238000,-641.68813308,8.968e-05,2]
[422524947,1779034238000,-665.02224701,8.968e-05,2]
[422524964,1779034240000,-533.21178026,8.878e-05,2]
[422524966,1779034240000,-2023.17785272,8.969e-05,2]
[422524965,1779034240000,-4466.78821974,8.878e-05,2]
[422524968,1779034240000,-1806.30804927,8.969e-05,2]
[422524967,1779034240000,-1549.6017491,8.969e-05,2]
[422524976,1779034243000,-12915.8620387,8.969e-05,2]
[422524977,1779034243000,-2259.40230511,8.969e-05,2]
[422524975,1779034243000,-55227.11701432,8.969e-05,2]
[422525008,1779034246000,-1856.32993702,8.969e-05,2]
[422525009,1779034246000,-355.3,8.969e-05,2]
[422525010,1779034246000,-43802.3257065,8.969e-05,2]
[422525011,1779034247000,-52882.69676401,8.969e-05,2]
[422525013,1779034247000,-506.62865969,8.969e-05,2]
[422525012,1779034247000,-2150.00499999,8.969e-05,2]
[422525018,1779034291000,200.0,0.00014921,120]
[422525028,1779034530000,200.0,0.00015967,120]
[422525040,1779034590000,200.0,0.00015225,120]
[422525042,1779034650000,200.0,0.00014642,120]
[422525044,1779034710000,200.0,0.00014212,120]
[422525047,1779034830000,200.0,0.00017205,120]
[422525051,1779034890000,200.0,0.00016578,120]
[422525057,1779034939000,160.165432,4.071e-05,2]
[422525056,1779034939000,160.165432,3.579e-05,2]
[422525058,1779034940000,160.165432,4.562e-05,2]
[422525060,1779034950000,200.0,0.00016578,120]
[422525061,1779034969000,519.503704,5.001e-05,2]
[422525063,1779034969000,634.15261874,5.001e-05,2]
[422525062,1779034969000,1000.0,5.001e-05,2]
[422525070,1779035005000,1000.0,5.001e-05,2]
[422525071,1779035005000,1000.0,5.001e-05,2]
[422525069,1779035005000,365.84738126,5.001e-05,2]
[422525073,1779035020000,5000.0,5e-05,2]
[422525078,1779035041000,5000.0,5e-05,2]
[422525081,1779035063000,5000.0,5e-05,2]
[422525083,1779035084000,5000.0,5e-05,2]
[422525084,1779035106000,5000.0,5e-05,2]
[422525085,1779035128000,5000.0,5e-05,2]
[422525086,1779035151000,5000.0,5e-05,2]
[422525089,1779035173000,5000.0,5e-05,2]
[422525092,1779035195000,5000.0,5e-05,2]
[422525093,1779035203000,241.511037,5e-05,2]
[422525096,1779035218000,5000.0,5e-05,2]
[422525100,1779035239000,5000.0,5e-05,2]
[422525103,1779035257000,-279.61434068,5.027e-05,2]
[422525104,1779035262000,5000.0,5e-05,2]
[422525105,1779035283000,5000.0,5e-05,2]
[422525121,1779035305000,5000.0,5e-05,2]
[422525123,1779035328000,5000.0,5e-05,2]
[422525126,1779035351000,5000.0,5e-05,2]
[422525128,1779035373000,5000.0,5e-05,2]
[422525130,1779035395000,5000.0,5e-05,2]
[422525133,1779035417000,5000.0,5e-05,2]
[422525160,1779035432000,-375.18223807,8.698e-05,2]
[422525158,1779035432000,-1052.0918107,8.219e-05,2]
[422525156,1779035432000,-81.13433974,7.862e-05,2]
[422525159,1779035432000,-500.0,8.283e-05,2]
[422525168,1779035432000,-500.0,8.763e-05,2]
[422525166,1779035432000,-300.0,8.762e-05,2]
[422525157,1779035432000,-500.0,7.869e-05,2]
[422525161,1779035432000,-456.513297,8.725e-05,2]
[422525164,1779035432000,-300.0,8.762e-05,2]
[422525163,1779035432000,-459.2880596,8.731e-05,2]
[422525167,1779035432000,-300.0,8.762e-05,2]
[422525155,1779035432000,-135.66045526,7.862e-05,2]
[422525149,1779035432000,-61.7405463,7.018e-05,2]
[422525148,1779035432000,-190.13,6.531e-05,2]
[422525146,1779035432000,-160.165432,6.036e-05,2]
[422525147,1779035432000,-160.165432,6.527e-05,2]
[422525150,1779035432000,-98.4248857,7.018e-05,2]
[422525145,1779035432000,-160.165432,5.544e-05,2]
[422525143,1779035432000,-399.49248553,5.04e-05,2]
[422525154,1779035432000,-223.8568454,7.683e-05,2]
[422525153,1779035432000,-1285.84962535,7.223e-05,2]
[422525152,1779035432000,-128.32482395,7.223e-05,2]
[422525144,1779035432000,-160.165432,5.053e-05,2]
[422525165,1779035432000,-300.0,8.762e-05,2]
[422525151,1779035432000,-471.40113292,7.04e-05,2]
[422525162,1779035432000,-1200.0,8.73e-05,2]
[422525179,1779035432000,-500.0,8.763e-05,2]
[422525180,1779035432000,-500.0,8.763e-05,2]
[422525170,1779035432000,-500.0,8.763e-05,2]
[422525193,1779035432000,-500.0,8.763e-05,2]
[422525191,1779035432000,-164.25275633,8.763e-05,2]
[422525189,1779035432000,-500.0,8.763e-05,2]
[422525195,1779035432000,-500.0,8.763e-05,2]
[422525184,1779035432000,-422.23804756,8.763e-05,2]
[422525194,1779035432000,-500.0,8.763e-05,2]
[422525186,1779035432000,-500.0,8.763e-05,2]
[422525190,1779035432000,-335.74724367,8.763e-05,2]
[422525188,1779035432000,-500.0,8.763e-05,2]
[422525187,1779035432000,-500.0,8.763e-05,2]
[422525185,1779035432000,-500.0,8.763e-05,2]
[422525192,1779035432000,-500.0,8.763e-05,2]
[422525174,1779035432000,-500.0,8.763e-05,2]
[422525178,1779035432000,-500.0,8.763e-05,2]
[422525196,1779035432000,-87.06683521,8.763e-05,2]
[422525172,1779035432000,-500.0,8.763e-05,2]
[422525175,1779035432000,-500.0,8.763e-05,2]
[422525177,1779035432000,-500.0,8.763e-05,2]
[422525176,1779035432000,-500.0,8.763e-05,2]
[422525173,1779035432000,-500.0,8.763e-05,2]
[422525181,1779035432000,-500.0,8.763e-05,2]
[422525171,1779035432000,-500.0,8.763e-05,2]
[422525169,1779035432000,-500.0,8.763e-05,2]
[422525182,1779035432000,-500.0,8.763e-05,2]
[422525183,1779035432000,-500.0,8.763e-05,2]
[422525207,1779035438000,-9124.74307508,8.764e-05,2]
[422525208,1779035438000,-28205.33408764,8.764e-05,2]
[422525209,1779035438000,-3885.45215023,8.764e-05,2]
[422525212,1779035438000,-952.97724851,8.764e-05,2]
[422525211,1779035438000,-2761.43621564,8.764e-05,2]
[422525213,1779035438000,-2536.51378436,8.764e-05,2]
[422525210,1779035438000,-22915.02475002,8.764e-05,2]
[422525272,1779035440000,-531.41345462,8.765e-05,2]
[422525251,1779035440000,-1019.05201729,8.676e-05,2]
[422525258,1779035440000,-531.41345462,8.765e-05,2]
[422525256,1779035440000,-35.13972211,8.765e-05,2]
[422525253,1779035440000,-1610.91742973,8.764e-05,2]
[422525259,1779035440000,-230.74952552,8.765e-05,2]
[422525257,1779035440000,-496.27373251,8.765e-05,2]
[422525255,1779035440000,-282.66308537,8.765e-05,2]
[422525260,1779035440000,-300.6639291,8.765e-05,2]
[422525254,1779035440000,-531.41345462,8.765e-05,2]
[422525262,1779035440000,-153.47906955,8.765e-05,2]
[422525261,1779035440000,-531.41345462,8.765e-05,2]
[422525252,1779035440000,-172.72024301,8.676e-05,2]
[422525264,1779035440000,-122.06561493,8.765e-05,2]
[422525273,1779035440000,-531.41345462,8.765e-05,2]
[422525277,1779035440000,-279.61434068,8.766e-05,2]
[422525275,1779035440000,-498.27573076,8.766e-05,2]
[422525274,1779035440000,-531.41345462,8.765e-05,2]
[422525276,1779035440000,-2218.67405951,8.766e-05,2]
[422525271,1779035440000,-531.41345462,8.765e-05,2]
[422525267,1779035440000,-531.41345462,8.765e-05,2]
[422525265,1779035440000,-409.34783969,8.765e-05,2]
[422525266,1779035440000,-531.41345462,8.765e-05,2]
[422525263,1779035440000,-377.93438507,8.765e-05,2]
[422525269,1779035440000,-531.41345462,8.765e-05,2]
[422525270,1779035440000,-531.41345462,8.765e-05,2]
[422525268,1779035440000,-531.41345462,8.765e-05,2]
[422525283,1779035443000,-3256.23330091,8.766e-05,2]
[422525282,1779035443000,-1179.67946753,8.766e-05,2]
[422525285,1779035443000,-5808.49999837,8.766e-05,2]
[422525287,1779035443000,-813.5,8.766e-05,2]
[422525286,1779035443000,-468.942,8.766e-05,2]
[422525288,1779035443000,-1235.10637035,8.766e-05,2]
[422525284,1779035443000,-285.0,8.766e-05,2]
[422525304,1779035446000,-531.41345462,8.765e-05,2]
[422525305,1779035446000,-177.07254538,8.765e-05,2]
[422525310,1779035446000,-531.41345462,8.765e-05,2]
[422525309,1779035446000,-531.41345462,8.765e-05,2]
[422525307,1779035446000,-77.82590894,8.765e-05,2]
[422525311,1779035446000,-531.41345462,8.765e-05,2]
[422525315,1779035446000,-531.41345462,8.765e-05,2]
[422525312,1779035446000,-531.41345462,8.765e-05,2]
[422525306,1779035446000,-276.5150003,8.765e-05,2]
[422525313,1779035446000,-531.41345462,8.765e-05,2]
[422525316,1779035446000,-3526.04107246,8.766e-05,2]
[422525314,1779035446000,-531.41345462,8.765e-05,2]
[422525317,1779035446000,-160.0,8.769e-05,2]
[422525308,1779035446000,-531.41345462,8.765e-05,2]
[422525318,1779035447000,-160.0,8.769e-05,2]
[422525324,1779035447000,-498.27573074,8.897e-05,2]
[422525321,1779035447000,-3727.4184671,8.78e-05,2]
[422525322,1779035447000,-498.27573074,8.831e-05,2]
[422525319,1779035447000,-161.67668242,8.769e-05,2]
[422525320,1779035447000,-1024.6182415,8.78e-05,2]
[422525329,1779035447000,-2629.23665974,8.969e-05,2]
[422525326,1779035447000,-48530.4722661,8.969e-05,2]
[422525325,1779035447000,-498.27573074,8.962e-05,2]
[422525332,1779035447000,-46204.40261382,8.969e-05,2]
[422525328,1779035447000,-34923.21132233,8.969e-05,2]
[422525327,1779035447000,-5000.0,8.677e-05,2]
[422525330,1779035447000,-24948.38733762,8.969e-05,2]
[422525323,1779035447000,-500.0,8.865e-05,2]
[422525343,1779035604000,180.0,0.00017808,120]
[422525353,1779035805000,165.9631951,3.926e-05,2]
[422525428,1779036632000,-160.0,7.832e-05,2]
[422525427,1779036632000,-32063.99976086,7.731e-05,2]
[422525429,1779036632000,-151.0,7.855e-05,2]
[422525433,1779036632000,-500.0,8.252e-05,2]
[422525431,1779036632000,-343.00415401,8.035e-05,2]
[422525432,1779036632000,-279.61434068,8.155e-05,2]
[422525426,1779036632000,-151.0,7.731e-05,2]
[422525430,1779036632000,-325.5080562,7.855e-05,2]
[422525425,1779036632000,-1022.63049013,7.597e-05,2]
[422525421,1779036632000,-300.0,7.594e-05,2]
[422525424,1779036632000,-300.0,7.594e-05,2]
[422525420,1779036632000,-1200.0,7.593e-05,2]
[422525423,1779036632000,-300.0,7.594e-05,2]
[422525422,1779036632000,-300.0,7.594e-05,2]
[422525419,1779036632000,-300.0,7.303e-05,2]
[422525416,1779036632000,-1428.50066713,7.086e-05,2]
[422525417,1779036632000,-2574.1771105,7.086e-05,2]
[422525415,1779036632000,-997.32222237,7.086e-05,2]
[422525438,1779036632000,-500.0,8.252e-05,2]
[422525418,1779036632000,-410.91234137,7.23e-05,2]
[422525435,1779036632000,-500.0,8.252e-05,2]
[422525434,1779036632000,-500.0,8.252e-05,2]
[422525457,1779036632000,-500.0,8.252e-05,2]
[422525460,1779036632000,-500.0,8.252e-05,2]
[422525459,1779036632000,-500.0,8.252e-05,2]
[422525456,1779036632000,-500.0,8.252e-05,2]
[422525437,1779036632000,-500.0,8.252e-05,2]
[422525458,1779036632000,-500.0,8.252e-05,2]
[422525455,1779036632000,-500.0,8.252e-05,2]
[422525454,1779036632000,-500.0,8.252e-05,2]
[422525453,1779036632000,-500.0,8.252e-05,2]
[422525451,1779036632000,-500.0,8.252e-05,2]
[422525452,1779036632000,-500.0,8.252e-05,2]
[422525450,1779036632000,-519.6147549,8.252e-05,2]
[422525449,1779036632000,-520.80679131,8.252e-05,2]
[422525445,1779036632000,-500.0,8.252e-05,2]
[422525447,1779036632000,-500.0,8.252e-05,2]
[422525444,1779036632000,-500.0,8.252e-05,2]
[422525446,1779036632000,-500.0,8.252e-05,2]
[422525443,1779036632000,-500.0,8.252e-05,2]
[422525441,1779036632000,-500.0,8.252e-05,2]
[422525440,1779036632000,-500.0,8.252e-05,2]
[422525436,1779036632000,-500.0,8.252e-05,2]
[422525448,1779036632000,-500.0,8.252e-05,2]
[422525483,1779036633000,-263.86365307,8.252e-05,2]
[422525477,1779036633000,-500.0,8.252e-05,2]
[422525478,1779036633000,-500.0,8.252e-05,2]
[422525480,1779036633000,-500.0,8.252e-05,2]
[422525479,1779036633000,-500.0,8.252e-05,2]
[422525481,1779036633000,-500.0,8.252e-05,2]
[422525474,1779036633000,-500.0,8.252e-05,2]
[422525485,1779036633000,-500.0,8.252e-05,2]
[422525484,1779036633000,-500.0,8.252e-05,2]
[422525486,1779036633000,-500.0,8.252e-05,2]
[422525488,1779036633000,-500.0,8.252e-05,2]
[422525487,1779036633000,-500.0,8.252e-05,2]
[422525489,1779036633000,-500.0,8.255e-05,2]
[422525482,1779036633000,-500.0,8.252e-05,2]
[422525475,1779036633000,-500.0,8.252e-05,2]
[422525467,1779036633000,-500.0,8.252e-05,2]
[422525472,1779036633000,-500.0,8.252e-05,2]
[422525471,1779036633000,-500.0,8.252e-05,2]
[422525470,1779036633000,-500.0,8.252e-05,2]
[422525473,1779036633000,-500.0,8.252e-05,2]
[422525469,1779036633000,-500.0,8.252e-05,2]
[422525468,1779036633000,-500.0,8.252e-05,2]
[422525465,1779036633000,-500.0,8.252e-05,2]
[422525466,1779036633000,-500.0,8.252e-05,2]
[422525490,1779036633000,-500.0,8.255e-05,2]
[422525464,1779036633000,-500.0,8.252e-05,2]
[422525462,1779036633000,-500.0,8.252e-05,2]
[422525463,1779036633000,-500.0,8.252e-05,2]
[422525461,1779036633000,-500.0,8.252e-05,2]
[422525476,1779036633000,-500.0,8.252e-05,2]
[422525491,1779036633000,-500.0,8.255e-05,2]
[422525497,1779036633000,-500.0,8.255e-05,2]
[422525495,1779036633000,-500.0,8.255e-05,2]
[422525523,1779036633000,-1078.08916142,8.256e-05,2]
[422525521,1779036633000,-12147.13375248,8.256e-05,2]
[422525522,1779036633000,-39085.0,8.256e-05,2]
[422525520,1779036633000,-276.36,8.256e-05,2]
[422525519,1779036633000,-12962.69871743,8.256e-05,2]
[422525517,1779036633000,-600.0,8.255e-05,2]
[422525518,1779036633000,-451.64007336,8.255e-05,2]
[422525516,1779036633000,-550.0,8.255e-05,2]
[422525514,1779036633000,-500.0,8.255e-05,2]
[422525492,1779036633000,-289.10334217,8.255e-05,2]
[422525513,1779036633000,-500.0,8.255e-05,2]
[422525515,1779036633000,-500.0,8.255e-05,2]
[422525512,1779036633000,-500.0,8.255e-05,2]
[422525511,1779036633000,-500.0,8.255e-05,2]
[422525510,1779036633000,-500.0,8.255e-05,2]
[422525509,1779036633000,-500.0,8.255e-05,2]
[422525508,1779036633000,-500.0,8.255e-05,2]
[422525507,1779036633000,-500.0,8.255e-05,2]
[422525494,1779036633000,-500.0,8.255e-05,2]
[422525498,1779036633000,-500.0,8.255e-05,2]
[422525501,1779036633000,-500.0,8.255e-05,2]
[422525499,1779036633000,-500.0,8.255e-05,2]
[422525496,1779036633000,-500.0,8.255e-05,2]
[422525493,1779036633000,-500.0,8.255e-05,2]
[422525503,1779036633000,-500.0,8.255e-05,2]
[422525502,1779036633000,-500.0,8.255e-05,2]
[422525505,1779036633000,-500.0,8.255e-05,2]
[422525506,1779036633000,-500.80842092,8.255e-05,2]
[422525504,1779036633000,-500.0,8.255e-05,2]
[422525500,1779036633000,-500.0,8.255e-05,2]
[422525544,1779036638000,-500.0,8.252e-05,2]
[422525547,1779036638000,-500.0,8.252e-05,2]
[422525546,1779036638000,-500.0,8.252e-05,2]
[422525550,1779036638000,-500.0,8.252e-05,2]
[422525545,1779036638000,-500.0,8.252e-05,2]
[422525543,1779036638000,-500.0,8.252e-05,2]
[422525551,1779036638000,-500.0,8.252e-05,2]
[422525540,1779036638000,-207.0949061,6.649e-05,2]
[422525541,1779036638000,-500.0,8.252e-05,2]
[422525542,1779036638000,-500.0,8.252e-05,2]
[422525549,1779036638000,-500.0,8.252e-05,2]
[422525548,1779036638000,-500.0,8.252e-05,2]
[422525553,1779036638000,-500.0,8.252e-05,2]
[422525557,1779036638000,-500.0,8.252e-05,2]
[422525560,1779036638000,-500.0,8.252e-05,2]
[422525555,1779036638000,-500.0,8.252e-05,2]
[422525566,1779036638000,-451.64007333,8.258e-05,2]
[422525563,1779036638000,-41329.29348108,8.256e-05,2]
[422525565,1779036638000,-151.0,8.256e-05,2]
[422525558,1779036638000,-500.0,8.252e-05,2]
[422525561,1779036638000,-500.0,8.252e-05,2]
[422525559,1779036638000,-500.0,8.252e-05,2]
[422525554,1779036638000,-500.0,8.252e-05,2]
[422525562,1779036638000,-103697.08182539,8.256e-05,2]
[422525556,1779036638000,-500.0,8.252e-05,2]
[422525552,1779036638000,-500.0,8.252e-05,2]
[422525564,1779036638000,-152524.73451174,8.256e-05,2]
[422525595,1779036639000,-537.6845,9.307e-05,2]
[422525609,1779036639000,-944.0,9.451e-05,2]
[422525605,1779036639000,-944.0,9.451e-05,2]
[422525606,1779036639000,-944.0,9.451e-05,2]
[422525604,1779036639000,-944.0,9.451e-05,2]
[422525600,1779036639000,-17457.781322,9.4e-05,2]
[422525603,1779036639000,-944.0,9.451e-05,2]
[422525602,1779036639000,-944.0,9.451e-05,2]
[422525598,1779036639000,-500.0,9.351e-05,2]
[422525596,1779036639000,-537.6845,9.307e-05,2]
[422525612,1779036639000,-944.0,9.451e-05,2]
[422525597,1779036639000,-500.0,9.307e-05,2]
[422525607,1779036639000,-944.0,9.451e-05,2]
[422525620,1779036639000,-944.0,9.451e-05,2]
[422525613,1779036639000,-944.0,9.451e-05,2]
[422525617,1779036639000,-944.0,9.451e-05,2]
[422525616,1779036639000,-944.0,9.451e-05,2]
[422525615,1779036639000,-944.0,9.451e-05,2]
[422525618,1779036639000,-944.0,9.451e-05,2]
[422525608,1779036639000,-944.0,9.451e-05,2]
[422525619,1779036639000,-944.0,9.451e-05,2]
[422525611,1779036639000,-944.0,9.451e-05,2]
[422525610,1779036639000,-944.0,9.451e-05,2]
[422525624,1779036639000,-944.0,9.451e-05,2]
[422525629,1779036639000,-151.5,9.451e-05,2]
[422525625,1779036639000,-964.86344473,9.451e-05,2]
[422525628,1779036639000,-151.5,9.451e-05,2]
[422525627,1779036639000,-151.5,9.451e-05,2]
[422525614,1779036639000,-944.0,9.451e-05,2]
[422525599,1779036639000,-557.5788265,9.362e-05,2]
[422525670,1779036639000,-178.59771198,9.749e-05,7]
[422525601,1779036639000,-578.20924308,9.417e-05,2]
[422525621,1779036639000,-944.0,9.451e-05,2]
[422525570,1779036639000,-451.64007333,8.267e-05,2]
[422525576,1779036639000,-500.0,8.529e-05,2]
[422525572,1779036639000,-420.0,8.353e-05,2]
[422525568,1779036639000,-451.64007333,8.264e-05,2]
[422525579,1779036639000,-160.0,8.672e-05,2]
[422525569,1779036639000,-375.02024867,8.267e-05,2]
[422525573,1779036639000,-420.0,8.353e-05,2]
[422525577,1779036639000,-161.67668242,8.657e-05,2]
[422525578,1779036639000,-160.0,8.672e-05,2]
[422525567,1779036639000,-451.64007333,8.261e-05,2]
[422525574,1779036639000,-324.0,8.353e-05,2]
[422525581,1779036639000,-500.0,8.803e-05,2]
[422525594,1779036639000,-162.380719,9.307e-05,2]
[422525584,1779036639000,-151.0,8.926e-05,2]
[422525575,1779036639000,-420.0,8.353e-05,2]
[422525580,1779036639000,-500.0,8.68e-05,2]
[422525583,1779036639000,-51262.8127515,8.926e-05,2]
[422525582,1779036639000,-1973.198616,8.926e-05,2]
[422525591,1779036639000,-481.0,9.189e-05,2]
[422525593,1779036639000,-484.87656282,9.23e-05,2]
[422525590,1779036639000,-587.0,9.189e-05,2]
[422525592,1779036639000,-481.0,9.189e-05,2]
[422525586,1779036639000,-263.56396474,8.969e-05,2]
[422525585,1779036639000,-412331.4966166,8.969e-05,2]
[422525587,1779036639000,-500.0,9.077e-05,2]
[422525589,1779036639000,-2351.0,9.188e-05,2]
[422525588,1779036639000,-2241.549484,9.123e-05,2]
[422525571,1779036639000,-1680.0,8.352e-05,2]
[422525622,1779036639000,-944.0,9.451e-05,2]
[422525675,1779036639000,-262.108369,9.9e-05,2]
[422525626,1779036639000,-151.5,9.451e-05,2]
[422525669,1779036639000,-183.0433232,9.747e-05,7]
[422525651,1779036639000,-500.0,9.451e-05,2]
[422525665,1779036639000,-291.38989044,9.625e-05,2]
[422525623,1779036639000,-944.0,9.451e-05,2]
[422525653,1779036639000,-500.0,9.451e-05,2]
[422525658,1779036639000,-500.0,9.451e-05,2]
[422525657,1779036639000,-500.0,9.451e-05,2]
[422525664,1779036639000,-644.79446246,9.582e-05,2]
[422525671,1779036639000,-745.65223616,9.802e-05,2]
[422525677,1779036639000,-831.51979763,9.967e-05,2]
[422525691,1779036639000,-151.0,0.0001,2]
[422525676,1779036639000,-801.85129955,9.912e-05,2]
[422525678,1779036639000,-8092.36609943,0.0001,2]
[422525667,1779036639000,-693.3919763,9.692e-05,2]
[422525679,1779036639000,-32615.4,0.0001,2]
[422525674,1779036639000,-773.2413689,9.857e-05,2]
[422525680,1779036639000,-151.0,0.0001,2]
[422525682,1779036639000,-180.00809806,0.0001,2]
[422525689,1779036639000,-151.0,0.0001,2]
[422525685,1779036639000,-151.0,0.0001,2]
[422525686,1779036639000,-151.0,0.0001,2]
[422525684,1779036639000,-151.0,0.0001,2]
[422525683,1779036639000,-151.0,0.0001,2]
[422525687,1779036639000,-151.0,0.0001,2]
[422525673,1779036639000,-500.0,9.855e-05,2]
[422525681,1779036639000,-151.0,0.0001,2]
[422525690,1779036639000,-151.0,0.0001,2]
[422525672,1779036639000,-557.5788265,9.855e-05,2]
[422525688,1779036639000,-151.0,0.0001,2]
[422525663,1779036639000,-621.78829552,9.527e-05,2]
[422525668,1779036639000,-719.04747942,9.747e-05,2]
[422525662,1779036639000,-599.60298507,9.472e-05,2]
[422525631,1779036639000,-151.5,9.451e-05,2]
[422525648,1779036639000,-500.0,9.451e-05,2]
[422525643,1779036639000,-500.0,9.451e-05,2]
[422525630,1779036639000,-287.57533501,9.451e-05,2]
[422525638,1779036639000,-500.0,9.451e-05,2]
[422525647,1779036639000,-500.0,9.451e-05,2]
[422525641,1779036639000,-500.0,9.451e-05,2]
[422525645,1779036639000,-500.0,9.451e-05,2]
[422525639,1779036639000,-500.0,9.451e-05,2]
[422525654,1779036639000,-500.0,9.451e-05,2]
[422525633,1779036639000,-151.5,9.451e-05,2]
[422525636,1779036639000,-500.0,9.451e-05,2]
[422525637,1779036639000,-500.0,9.451e-05,2]
[422525642,1779036639000,-500.0,9.451e-05,2]
[422525632,1779036639000,-151.5,9.451e-05,2]
[422525650,1779036639000,-500.0,9.451e-05,2]
[422525659,1779036639000,-500.0,9.451e-05,2]
[422525634,1779036639000,-500.0,9.451e-05,2]
[422525656,1779036639000,-500.0,9.451e-05,2]
[422525652,1779036639000,-219.33776712,9.451e-05,2]
[422525660,1779036639000,-500.0,9.451e-05,2]
[422525666,1779036639000,-668.65185757,9.637e-05,2]
[422525661,1779036639000,-192.0800676,9.451e-05,2]
[422525649,1779036639000,-500.0,9.451e-05,2]
[422525646,1779036639000,-500.0,9.451e-05,2]
[422525644,1779036639000,-500.0,9.451e-05,2]
[422525640,1779036639000,-500.0,9.451e-05,2]
[422525635,1779036639000,-204.45353009,9.451e-05,2]
[422525655,1779036639000,-500.0,9.451e-05,2]